fUSD/lending_fUSD_20241207
["ID","MTS","AMOUNT","RATE_DAILY","PERIOD"]
[344523333,1733535175760,500.0,8.219e-05,2]
[344523334,1733535176105,500.0,8.493e-05,2]
[344523335,1733535176380,500.0,8.767e-05,2]
[344523336,1733535176523,1549.04,9.588e-05,2]
[344523337,1733535176661,500.0,9.041e-05,2]
[344523338,1733535176791,1549.04,9.862e-05,2]
[344523339,1733535176953,500.0,9.315e-05,2]
[344523340,1733535177306,500.0,9.589e-05,2]
[344523341,1733535177575,500.0,9.863e-05,2]
[344523342,1733535179136,8950.33,9.588e-05,2]
[344523343,1733535179415,8950.33,9.862e-05,2]
[344523344,1733535181588,500.0,8.219e-05,2]
[344523345,1733535181903,500.0,8.493e-05,2]
[344523346,1733535182165,500.0,8.767e-05,2]
[344523347,1733535182408,500.0,9.041e-05,2]
[344523348,1733535182673,500.0,9.315e-05,2]
[344523349,1733535182960,500.0,9.589e-05,2]
[344523350,1733535183579,500.0,9.863e-05,2]
[344523351,1733535186708,1790.26,9.588e-05,2]
[344523352,1733535186999,1790.26,9.862e-05,2]
[344523353,1733535188474,2155.51,9.314e-05,2]
[344523354,1733535188744,2155.51,9.588e-05,2]
[344523355,1733535189005,2155.51,9.862e-05,2]
[344523356,1733535189066,250.0,9.974e-05,2]
[344523357,1733535190908,1256.36,8.219e-05,2]
[344523358,1733535191188,1256.36,8.493e-05,2]
[344523359,1733535191634,1256.36,8.767e-05,2]
[344523360,1733535191884,1256.36,9.041e-05,2]
[344523361,1733535192164,1256.36,9.315e-05,2]
[344523362,1733535192434,1256.36,9.589e-05,2]
[344523363,1733535192705,1256.36,9.863e-05,2]
[344523364,1733535193919,168.68,9.974e-05,2]
[344523365,1733535197229,500.0,8.219e-05,2]
[344523366,1733535197619,500.0,8.493e-05,2]
[344523367,1733535197720,10381.03,9.314e-05,2]
[344523368,1733535197887,500.0,8.767e-05,2]
[344523369,1733535197993,10381.03,9.588e-05,2]
[344523370,1733535198197,500.0,9.041e-05,2]
[344523371,1733535198269,10381.03,9.862e-05,2]
[344523372,1733535198581,500.0,9.315e-05,2]
[344523373,1733535198768,3458.57,9.588e-05,2]
[344523374,1733535198838,500.0,9.589e-05,2]
[344523375,1733535199090,3458.57,9.862e-05,2]
[344523376,1733535199150,500.0,9.863e-05,2]
[344523377,1733535199995,602.96211244,8.219e-05,2]
[344523378,1733535200610,891.57,8.219e-05,2]
[344523379,1733535201207,891.57,8.493e-05,2]
[344523380,1733535201262,500.0,8.219e-05,2]
[344523381,1733535201362,891.57,8.767e-05,2]
[344523382,1733535201483,500.0,8.493e-05,2]
[344523383,1733535201630,500.0,8.767e-05,2]
[344523384,1733535201691,891.57,9.041e-05,2]
[344523385,1733535201774,500.0,9.041e-05,2]
[344523386,1733535201916,891.57,9.315e-05,2]
[344523387,1733535202034,500.0,9.315e-05,2]
[344523388,1733535202192,891.57,9.589e-05,2]
[344523389,1733535202452,500.0,9.589e-05,2]
[344523390,1733535202501,891.57,9.863e-05,2]
[344523391,1733535203112,500.0,9.863e-05,2]
[344523392,1733535204254,1265.51,9.588e-05,2]
[344523393,1733535204499,1265.51,9.862e-05,2]
[344523394,1733535206301,1014.87,9.314e-05,2]
[344523395,1733535206606,1014.87,9.588e-05,2]
[344523396,1733535207053,1014.87,9.862e-05,2]
[344523397,1733535209143,738.07,9.588e-05,2]
[344523398,1733535209405,738.07,9.862e-05,2]
[344523399,1733535209861,500.0,8.219e-05,2]
[344523400,1733535210116,500.0,8.493e-05,2]
[344523401,1733535210410,637.37905833,8.767e-05,2]
[344523402,1733535211793,1322.17,8.219e-05,2]
[344523403,1733535212055,1322.17,8.493e-05,2]
[344523404,1733535212325,1322.17,8.767e-05,2]
[344523405,1733535212583,1322.17,9.041e-05,2]
[344523406,1733535212861,1322.17,9.315e-05,2]
[344523407,1733535213128,1322.17,9.589e-05,2]
[344523408,1733535213388,1322.17,9.863e-05,2]
[344523409,1733535215286,2954.83,9.314e-05,2]
[344523410,1733535215565,2954.83,9.588e-05,2]
[344523411,1733535215848,2954.83,9.862e-05,2]
[344523412,1733535218040,500.0,8.219e-05,2]
[344523413,1733535218311,240.10685968,8.493e-05,2]
[344523414,1733535220435,500.0,8.219e-05,2]
[344523415,1733535220699,501.14662054,8.493e-05,2]
[344523416,1733535221509,3667.97,9.588e-05,2]
[344523417,1733535222148,3667.97,9.862e-05,2]
[344523418,1733535222304,500.0,8.219e-05,2]
[344523419,1733535222527,500.0,8.493e-05,2]
[344523420,1733535224103,500.0,8.767e-05,2]
[344523421,1733535224214,500.0,9.041e-05,2]
[344523422,1733535224325,500.0,9.315e-05,2]
[344523423,1733535224420,500.0,9.589e-05,2]
[344523424,1733535224519,500.0,9.863e-05,2]
[344523425,1733535226942,1792.99,9.588e-05,2]
[344523426,1733535227218,1792.99,9.862e-05,2]
[344523427,1733535228119,506.58624769,8.219e-05,2]
[344523428,1733535228588,500.0,8.219e-05,2]
[344523429,1733535228641,665.07,9.314e-05,2]
[344523430,1733535228876,500.0,8.493e-05,2]
[344523431,1733535228930,665.07,9.588e-05,2]
[344523432,1733535229170,564.31465472,8.767e-05,2]
[344523433,1733535229219,665.07,9.862e-05,2]
[344523434,1733535236814,1514.17,8.219e-05,2]
[344523435,1733535237081,1514.17,8.493e-05,2]
[344523436,1733535237358,1514.17,8.767e-05,2]
[344523437,1733535237404,879.99,9.314e-05,2]
[344523438,1733535237637,1514.17,9.041e-05,2]
[344523439,1733535237690,879.99,9.588e-05,2]
[344523440,1733535237891,879.99,9.862e-05,2]
[344523441,1733535237951,1514.17,9.315e-05,2]
[344523442,1733535238014,273.88297443,8.219e-05,2]
[344523443,1733535238432,1514.17,9.589e-05,2]
[344523444,1733535238706,1514.17,9.863e-05,2]
[344523445,1733535240146,1123.08,8.219e-05,2]
[344523446,1733535240415,1123.08,8.493e-05,2]
[344523447,1733535240707,1123.08,8.767e-05,2]
[344523448,1733535240922,12775.21,9.588e-05,2]
[344523449,1733535241000,1123.08,9.041e-05,2]
[344523450,1733535241203,12775.21,9.862e-05,2]
[344523451,1733535241267,1123.08,9.315e-05,2]
[344523452,1733535241549,1123.08,9.589e-05,2]
[344523453,1733535241817,1123.08,9.863e-05,2]
[344523454,1733535247403,500.0,8.219e-05,2]
[344523455,1733535247691,500.0,8.493e-05,2]
[344523456,1733535248014,500.0,8.767e-05,2]
[344523457,1733535248067,1124.67,9.314e-05,2]
[344523458,1733535248291,500.0,9.041e-05,2]
[344523459,1733535248348,1124.67,9.588e-05,2]
[344523460,1733535248564,500.0,9.315e-05,2]
[344523461,1733535248614,1124.67,9.862e-05,2]
[344523462,1733535249060,1963.72,8.219e-05,2]
[344523463,1733535249219,500.0,9.589e-05,2]
[344523464,1733535249321,1963.72,8.493e-05,2]
[344523465,1733535249523,500.0,9.863e-05,2]
[344523466,1733535249590,1963.72,8.767e-05,2]
[344523467,1733535249825,1963.72,9.041e-05,2]
[344523468,1733535250515,1963.72,9.315e-05,2]
[344523469,1733535250617,1963.72,9.589e-05,2]
[344523470,1733535250816,1963.72,9.863e-05,2]
[344523471,1733535259264,6639.66,9.314e-05,2]
[344523472,1733535259584,6639.66,9.588e-05,2]
[344523473,1733535259876,6639.66,9.862e-05,2]
[344523474,1733535264300,506.60408825,8.219e-05,2]
[344523475,1733535265298,652.62,8.219e-05,2]
[344523476,1733535265562,652.62,8.493e-05,2]
[344523477,1733535265827,652.62,8.767e-05,2]
[344523478,1733535266095,652.62,9.041e-05,2]
[344523479,1733535266367,652.62,9.315e-05,2]
[344523480,1733535266644,652.62,9.589e-05,2]
[344523481,1733535266991,652.62,9.863e-05,2]
[344523482,1733535271660,506.53208049,8.219e-05,2]
[344523483,1733535274845,500.0,8.219e-05,2]
[344523484,1733535275124,500.9178385,8.493e-05,2]
[344523485,1733535275916,1126.97,8.219e-05,2]
[344523486,1733535276402,1126.97,8.493e-05,2]
[344523487,1733535276660,1126.97,8.767e-05,2]
[344523488,1733535276875,500.0,8.219e-05,2]
[344523489,1733535277425,1126.97,9.041e-05,2]
[344523490,1733535277498,500.0,8.493e-05,2]
[344523491,1733535277578,1126.97,9.315e-05,2]
[344523492,1733535277627,500.0,8.219e-05,2]
[344523493,1733535277696,500.0,8.767e-05,2]
[344523494,1733535277768,500.0,8.493e-05,2]
[344523495,1733535277852,500.0,9.041e-05,2]
[344523496,1733535277932,500.0,8.767e-05,2]
[344523497,1733535277989,1126.97,9.589e-05,2]
[344523498,1733535278116,500.0,9.041e-05,2]
[344523499,1733535278181,1126.97,9.863e-05,2]
[344523500,1733535278302,500.0,9.315e-05,2]
[344523501,1733535278407,500.0,9.315e-05,2]
[344523502,1733535278474,311.67313756,9.589e-05,2]
[344523503,1733535278675,500.0,9.589e-05,2]
[344523504,1733535278926,500.0,9.863e-05,2]
[344523505,1733535278986,500.0,8.219e-05,2]
[344523506,1733535279252,500.0,8.493e-05,2]
[344523507,1733535279852,236.33520428,8.767e-05,2]
[344523508,1733535280962,1143.91,9.588e-05,2]
[344523509,1733535281287,1143.91,9.862e-05,2]
[344523510,1733535281451,648.61,9.314e-05,2]
[344523511,1733535281741,648.61,9.588e-05,2]
[344523512,1733535282023,648.61,9.862e-05,2]
[344523513,1733535285642,820.39,8.219e-05,2]
[344523514,1733535285775,820.39,8.493e-05,2]
[344523515,1733535286124,820.39,8.767e-05,2]
[344523516,1733535286448,820.39,9.041e-05,2]
[344523517,1733535286731,820.39,9.315e-05,2]
[344523518,1733535286989,820.39,9.589e-05,2]
[344523519,1733535287244,820.39,9.863e-05,2]
[344523520,1733535289613,671.85,9.588e-05,2]
[344523521,1733535289897,671.85,9.862e-05,2]
[344523522,1733535290781,1131.8,9.314e-05,2]
[344523523,1733535291074,1131.8,9.588e-05,2]
[344523524,1733535292504,1131.8,9.862e-05,2]
[344523525,1733535294475,1038.36,8.219e-05,2]
[344523526,1733535294790,1038.36,8.493e-05,2]
[344523527,1733535295139,1038.36,8.767e-05,2]
[344523528,1733535295893,1038.36,9.041e-05,2]
[344523529,1733535295977,1038.36,9.315e-05,2]
[344523530,1733535296132,1038.36,9.589e-05,2]
[344523531,1733535296345,1038.36,9.863e-05,2]
[344523532,1733535298631,546.42,9.588e-05,2]
[344523533,1733535298870,1745.41,8.219e-05,2]
[344523534,1733535298933,546.42,9.862e-05,2]
[344523535,1733535299162,1745.41,8.493e-05,2]
[344523536,1733535299420,1745.41,8.767e-05,2]
[344523537,1733535299675,1745.41,9.041e-05,2]
[344523538,1733535299913,1745.41,9.315e-05,2]
[344523539,1733535300180,1745.41,9.589e-05,2]
[344523540,1733535300551,1745.41,9.863e-05,2]
[344523541,1733535303548,173.4530825,0.0001666,29]
[344523542,1733535304440,1363.01,9.588e-05,2]
[344523543,1733535304698,1363.01,9.862e-05,2]
[344523544,1733535304774,1010.91,8.219e-05,2]
[344523545,1733535305005,501.86422603,8.219e-05,2]
[344523546,1733535305059,1010.91,8.493e-05,2]
[344523547,1733535305317,1010.91,8.767e-05,2]
[344523548,1733535305580,1010.91,9.041e-05,2]
[344523549,1733535305847,1010.91,9.315e-05,2]
[344523550,1733535306527,1010.91,9.589e-05,2]
[344523551,1733535306619,1010.91,9.863e-05,2]
[344523552,1733535307382,500.0,8.219e-05,2]
[344523553,1733535307515,500.0,8.493e-05,2]
[344523554,1733535307617,500.0,8.767e-05,2]
[344523555,1733535307849,500.0,9.041e-05,2]
[344523556,1733535308453,500.0,9.315e-05,2]
[344523557,1733535308729,500.0,9.589e-05,2]
[344523558,1733535309021,500.0,9.863e-05,2]
[344523559,1733535311288,500.0,8.219e-05,2]
[344523560,1733535311607,500.0,8.493e-05,2]
[344523561,1733535311696,500.0,9.314e-05,2]
[344523562,1733535311849,500.0,8.767e-05,2]
[344523563,1733535311955,500.0,9.588e-05,2]
[344523564,1733535312115,500.0,9.041e-05,2]
[344523565,1733535312239,500.0,9.862e-05,2]
[344523566,1733535312375,500.0,9.315e-05,2]
[344523567,1733535312657,500.0,9.589e-05,2]
[344523568,1733535312928,500.0,9.863e-05,2]
[344523569,1733535315212,8378.04,9.588e-05,2]
[344523570,1733535315707,8378.04,9.862e-05,2]
[344523571,1733535317658,1247.13,9.588e-05,2]
[344523572,1733535317959,1247.13,9.862e-05,2]
[344523573,1733535323479,1180.33,8.219e-05,2]
[344523574,1733535323539,500.0,9.314e-05,2]
[344523575,1733535323810,1180.33,8.493e-05,2]
[344523576,1733535323862,500.0,9.588e-05,2]
[344523577,1733535324080,500.0,9.862e-05,2]
[344523578,1733535324137,1180.33,8.767e-05,2]
[344523579,1733535324187,500.0,8.219e-05,2]
[344523580,1733535324345,1180.33,9.041e-05,2]
[344523581,1733535324503,500.0,8.493e-05,2]
[344523582,1733535324657,1180.33,9.315e-05,2]
[344523583,1733535324766,500.0,8.767e-05,2]
[344523584,1733535324887,1180.33,9.589e-05,2]
[344523585,1733535325019,500.0,9.041e-05,2]
[344523586,1733535325138,1180.33,9.863e-05,2]
[344523587,1733535325306,500.0,9.315e-05,2]
[344523588,1733535325571,232.40081635,9.589e-05,2]
[344523589,1733535325985,500.0,8.219e-05,2]
[344523590,1733535326231,500.0,8.493e-05,2]
[344523591,1733535326482,500.0,8.767e-05,2]
[344523592,1733535326546,2689.58,9.588e-05,2]
[344523593,1733535326660,834.96,9.588e-05,2]
[344523594,1733535326748,500.0,9.041e-05,2]
[344523595,1733535326927,834.96,9.862e-05,2]
[344523596,1733535326977,2689.58,9.862e-05,2]
[344523597,1733535327032,500.0,9.315e-05,2]
[344523598,1733535327844,500.0,9.589e-05,2]
[344523599,1733535327943,500.0,9.863e-05,2]
[344523600,1733535328005,500.0,8.219e-05,2]
[344523601,1733535328115,500.0,8.493e-05,2]
[344523602,1733535328224,500.0,8.767e-05,2]
[344523603,1733535328485,500.0,9.041e-05,2]
[344523604,1733535328748,234.23086102,9.315e-05,2]
[344523605,1733535329835,545.77315509,8.219e-05,2]
[344523606,1733535331781,500.0,8.219e-05,2]
[344523607,1733535331907,637.63,8.219e-05,2]
[344523608,1733535332048,525.57882829,8.493e-05,2]
[344523609,1733535332183,637.63,8.493e-05,2]
[344523610,1733535332438,637.63,8.767e-05,2]
[344523611,1733535332714,637.63,9.041e-05,2]
[344523612,1733535332987,637.63,9.315e-05,2]
[344523613,1733535333060,500.0,8.219e-05,2]
[344523614,1733535333248,637.63,9.589e-05,2]
[344523615,1733535333366,500.0,8.493e-05,2]
[344523616,1733535333551,637.63,9.863e-05,2]
[344523617,1733535333657,500.0,8.767e-05,2]
[344523618,1733535333939,500.0,9.041e-05,2]
[344523619,1733535334517,500.0,9.315e-05,2]
[344523620,1733535334858,500.0,9.589e-05,2]
[344523621,1733535335115,500.0,9.863e-05,2]
[344523622,1733535338718,903.24,8.219e-05,2]
[344523623,1733535338864,903.24,8.493e-05,2]
[344523624,1733535339192,903.24,8.767e-05,2]
[344523625,1733535339454,903.24,9.041e-05,2]
[344523626,1733535339764,903.24,9.315e-05,2]
[344523627,1733535340142,903.24,9.589e-05,2]
[344523628,1733535340223,2601.26,9.588e-05,2]
[344523629,1733535340534,2601.26,9.862e-05,2]
[344523630,1733535340777,903.24,9.863e-05,2]
[344523631,1733535341332,1081.3,8.219e-05,2]
[344523632,1733535341582,1081.3,8.493e-05,2]
[344523633,1733535341885,1081.3,8.767e-05,2]
[344523634,1733535342157,1081.3,9.041e-05,2]
[344523635,1733535342407,1081.3,9.315e-05,2]
[344523636,1733535342669,1081.3,9.589e-05,2]
[344523637,1733535342939,1081.3,9.863e-05,2]
[344523638,1733535346986,2112.54,8.219e-05,2]
[344523639,1733535347243,2112.54,8.493e-05,2]
[344523640,1733535347501,2112.54,8.767e-05,2]
[344523641,1733535347760,2112.54,9.041e-05,2]
[344523642,1733535347857,500.0,8.219e-05,2]
[344523643,1733535348064,2112.54,9.315e-05,2]
[344523644,1733535348126,225.79706598,8.493e-05,2]
[344523645,1733535348366,2112.54,9.589e-05,2]
[344523646,1733535348450,2350.46,9.588e-05,2]
[344523647,1733535348619,2112.54,9.863e-05,2]
[344523648,1733535349591,2350.46,9.862e-05,2]
[344523649,1733535349639,500.0,8.219e-05,2]
[344523650,1733535349711,500.0,8.493e-05,2]
[344523651,1733535349794,229.48808174,8.767e-05,2]
[344523652,1733535349972,1231.81,8.219e-05,2]
[344523653,1733535350040,169.44207916,8.219e-05,2]
[344523654,1733535350126,1231.81,8.493e-05,2]
[344523655,1733535350383,1231.81,8.767e-05,2]
[344523656,1733535350639,1231.81,9.041e-05,2]
[344523657,1733535350909,1231.81,9.315e-05,2]
[344523658,1733535351165,1231.81,9.589e-05,2]
[344523659,1733535352112,1231.81,9.863e-05,2]
[344523660,1733535352701,500.0,8.219e-05,2]
[344523661,1733535352932,500.0,8.493e-05,2]
[344523662,1733535353195,500.0,8.767e-05,2]
[344523663,1733535353477,500.0,9.041e-05,2]
[344523664,1733535353739,500.0,9.315e-05,2]
[344523665,1733535354021,500.0,9.589e-05,2]
[344523666,1733535354278,500.0,9.863e-05,2]
[344523667,1733535358841,6668.26,9.588e-05,2]
[344523668,1733535359136,6668.26,9.862e-05,2]
[344523669,1733535359266,500.0,8.219e-05,2]
[344523670,1733535359533,500.0,8.493e-05,2]
[344523671,1733535360381,500.0,8.767e-05,2]
[344523672,1733535360446,404.74418778,9.041e-05,2]
[344523673,1733535361251,500.0,8.219e-05,2]
[344523674,1733535361532,500.0,8.493e-05,2]
[344523675,1733535361906,500.0,8.767e-05,2]
[344523676,1733535362002,190.86704246,8.219e-05,2]
[344523677,1733535362185,500.0,9.041e-05,2]
[344523678,1733535362473,500.0,9.315e-05,2]
[344523679,1733535362751,577.92838077,9.589e-05,2]
[344523680,1733535363888,150.0,9.638e-05,2]
[344523681,1733535364342,500.75062879,8.219e-05,2]
[344523682,1733535369594,500.0,9.588e-05,2]
[344523683,1733535369872,500.0,9.862e-05,2]
[344523684,1733535370926,677.23,9.588e-05,2]
[344523685,1733535371047,677.23,9.862e-05,2]
[344523686,1733535372981,500.0,8.219e-05,2]
[344523687,1733535373240,288.8657068,8.493e-05,2]
[344523688,1733535376567,500.0,8.219e-05,2]
[344523689,1733535376889,2667.55,9.588e-05,2]
[344523690,1733535377195,534.72174947,8.493e-05,2]
[344523691,1733535377263,2667.55,9.862e-05,2]
[344523692,1733535379396,1080.58,8.219e-05,2]
[344523693,1733535379612,1000.0,9.675e-05,2]
[344523694,1733535379678,1080.58,8.493e-05,2]
[344523695,1733535379920,1002.14978351,7.686e-05,2]
[344523696,1733535379984,1080.58,8.767e-05,2]
[344523697,1733535380209,1002.14978351,7.693e-05,2]
[344523698,1733535380264,1080.58,9.041e-05,2]
[344523699,1733535380490,1002.14978351,7.685e-05,2]
[344523700,1733535380546,1080.58,9.315e-05,2]
[344523701,1733535380768,1002.14978351,7.686e-05,2]
[344523702,1733535380838,1080.58,9.589e-05,2]
[344523703,1733535381384,2217.75,9.588e-05,2]
[344523704,1733535381459,1002.14978351,7.7e-05,2]
[344523705,1733535381525,1080.58,9.863e-05,2]
[344523706,1733535381603,2217.75,9.862e-05,2]
[344523707,1733535381694,1002.14978351,7.681e-05,2]
[344523708,1733535383264,608.67059152,8.219e-05,2]
[344523709,1733535384473,314.71607584,8.219e-05,2]
[344523710,1733535385198,500.0,8.219e-05,2]
[344523711,1733535385481,500.0,8.493e-05,2]
[344523712,1733535385738,500.0,8.767e-05,2]
[344523713,1733535385984,500.0,8.219e-05,2]
[344523714,1733535386038,500.0,9.041e-05,2]
[344523715,1733535386171,162.67714718,9.98e-05,2]
[344523716,1733535386397,322.45530065,9.315e-05,2]
[344523717,1733535386448,2341.87,8.219e-05,2]
[344523718,1733535386499,500.0,8.493e-05,2]
[344523719,1733535386615,2341.87,8.493e-05,2]
[344523720,1733535386678,500.0,8.767e-05,2]
[344523721,1733535386855,271.72340669,8.219e-05,2]
[344523722,1733535386923,2341.87,8.767e-05,2]
[344523723,1733535386984,500.0,9.041e-05,2]
[344523724,1733535387135,2341.87,9.041e-05,2]
[344523725,1733535387304,2341.87,9.315e-05,2]
[344523726,1733535387420,500.0,9.315e-05,2]
[344523727,1733535387657,2341.87,9.589e-05,2]
[344523728,1733535387714,500.0,9.589e-05,2]
[344523729,1733535387869,200.0,7.68e-05,2]
[344523730,1733535387923,2311.91,8.219e-05,2]
[344523731,1733535387972,2341.87,9.863e-05,2]
[344523732,1733535388043,500.0,9.863e-05,2]
[344523733,1733535388136,5985.82,9.588e-05,2]
[344523734,1733535388490,200.0,7.68e-05,2]
[344523735,1733535388558,2311.91,8.493e-05,2]
[344523736,1733535388672,5985.82,9.862e-05,2]
[344523737,1733535388751,200.0,7.684e-05,2]
[344523738,1733535388819,2311.91,8.767e-05,2]
[344523739,1733535388923,200.0,7.68e-05,2]
[344523740,1733535388974,500.0,8.219e-05,2]
[344523741,1733535389037,2311.91,9.041e-05,2]
[344523742,1733535389126,200.0,7.687e-05,2]
[344523743,1733535389212,500.0,8.493e-05,2]
[344523744,1733535389271,2311.91,9.315e-05,2]
[344523745,1733535389349,200.0,7.685e-05,2]
[344523746,1733535389401,500.0,8.767e-05,2]
[344523747,1733535389512,554.23089009,9.041e-05,2]
[344523748,1733535389888,2311.91,9.589e-05,2]
[344523749,1733535390162,2311.91,9.863e-05,2]
[344523750,1733535391303,325.48,9.557e-05,2]
[344523751,1733535391879,314.63671219,8.219e-05,2]
[344523752,1733535392007,500.0,8.219e-05,2]
[344523753,1733535392346,332.38740981,8.493e-05,2]
[344523754,1733535393931,500.0,8.219e-05,2]
[344523755,1733535394220,500.0,8.493e-05,2]
[344523756,1733535394317,4708.71,9.557e-05,2]
[344523757,1733535394479,500.0,8.767e-05,2]
[344523758,1733535394815,306.88746169,9.041e-05,2]
[344523759,1733535396133,615.58316862,7.693e-05,2]
[344523760,1733535396447,615.58316862,7.681e-05,2]
[344523761,1733535396864,615.58316862,7.689e-05,2]
[344523762,1733535397122,615.58316862,7.697e-05,2]
[344523763,1733535397381,615.58316862,7.694e-05,2]
[344523764,1733535397435,637.19048373,8.219e-05,2]
[344523765,1733535397692,615.58316862,7.7e-05,2]
[344523766,1733535399228,500.0,8.219e-05,2]
[344523767,1733535399482,500.0,8.493e-05,2]
[344523768,1733535399728,1323.04,9.588e-05,2]
[344523769,1733535399934,500.0,8.767e-05,2]
[344523770,1733535399989,1323.04,9.862e-05,2]
[344523771,1733535400209,500.0,9.041e-05,2]
[344523772,1733535400463,500.0,9.315e-05,2]
[344523773,1733535400726,500.0,9.589e-05,2]
[344523774,1733535400994,500.0,9.863e-05,2]
[344523775,1733535406420,1160.55,8.219e-05,2]
[344523776,1733535406720,1160.55,8.493e-05,2]
[344523777,1733535406974,1160.55,8.767e-05,2]
[344523778,1733535407223,1160.55,9.041e-05,2]
[344523779,1733535407513,1160.55,9.315e-05,2]
[344523780,1733535407766,1160.55,9.589e-05,2]
[344523781,1733535408047,1160.55,9.863e-05,2]
[344523782,1733535408510,500.0,8.219e-05,2]
[344523783,1733535408750,500.0,8.493e-05,2]
[344523784,1733535409048,500.0,8.767e-05,2]
[344523785,1733535409329,500.0,9.041e-05,2]
[344523786,1733535409459,2844.01,9.588e-05,2]
[344523787,1733535409550,500.0,9.315e-05,2]
[344523788,1733535409638,2844.01,9.862e-05,2]
[344523789,1733535409818,500.0,9.589e-05,2]
[344523790,1733535410096,500.0,9.863e-05,2]
[344523791,1733535411468,195.75,9.862e-05,2]
[344523792,1733535412531,500.0,8.219e-05,2]
[344523793,1733535413076,500.0,8.219e-05,2]
[344523794,1733535413181,500.0,8.493e-05,2]
[344523795,1733535413237,500.0,8.493e-05,2]
[344523796,1733535413295,500.0,8.219e-05,2]
[344523797,1733535413383,500.0,8.767e-05,2]
[344523798,1733535413432,500.0,8.767e-05,2]
[344523799,1733535413492,500.0,8.493e-05,2]
[344523800,1733535413594,500.0,9.041e-05,2]
[344523801,1733535413660,500.0,9.041e-05,2]
[344523802,1733535413728,360.01974976,8.767e-05,2]
[344523803,1733535413815,500.0,9.315e-05,2]
[344523804,1733535413872,500.0,9.315e-05,2]
[344523805,1733535413968,500.0,9.589e-05,2]
[344523806,1733535414027,500.0,9.589e-05,2]
[344523807,1733535414192,500.0,9.863e-05,2]
[344523808,1733535414240,526.57802753,9.863e-05,2]
[344523809,1733535416444,538.28,8.219e-05,2]
[344523810,1733535416524,500.0,8.219e-05,2]
[344523811,1733535416714,538.28,8.493e-05,2]
[344523812,1733535416777,500.0,8.493e-05,2]
[344523813,1733535416972,538.28,8.767e-05,2]
[344523814,1733535417035,500.0,8.767e-05,2]
[344523815,1733535417231,538.28,9.041e-05,2]
[344523816,1733535417283,553.68,8.219e-05,2]
[344523817,1733535417332,500.0,9.041e-05,2]
[344523818,1733535417585,500.0,9.315e-05,2]
[344523819,1733535417757,553.68,8.493e-05,2]
[344523820,1733535417849,500.0,9.589e-05,2]
[344523821,1733535417900,538.28,9.315e-05,2]
[344523822,1733535418408,500.0,9.863e-05,2]
[344523823,1733535418459,538.28,9.589e-05,2]
[344523824,1733535418549,553.68,8.767e-05,2]
[344523825,1733535418597,538.28,9.863e-05,2]
[344523826,1733535418694,553.68,9.041e-05,2]
[344523827,1733535418968,553.68,9.315e-05,2]
[344523828,1733535419042,500.0,9.588e-05,2]
[344523829,1733535419581,553.68,9.589e-05,2]
[344523830,1733535419872,553.68,9.863e-05,2]
[344523831,1733535422074,500.0,8.219e-05,2]
[344523832,1733535422227,320.20835615,8.219e-05,2]